[Event "Budapest Chess Festival 2024"]
[Site "Budapest"]
[Date "2024.05.24"]
[Round "2.15"]
[White "Kacprzak, Karol"]
[Black "Parkhov, Yair"]
[Result "0-1"]
[ECO "B90"]
[WhiteElo "2333"]
[BlackElo "2510"]
[Annotator "ChessBase"]
[PlyCount "224"]
[EventDate "2024.05.20"]
[EventType "swiss"]
[EventCountry "HUN"]
[SourceTitle "playchess.com"]
[Source "ChessBase"]
[SourceQuality "1"]
[TimeControl "40/5400+30:1800+30"]

1. e4 {[%emt 0:00:32]} c5 {[%emt 0:00:36]} 2. Nf3 {[%emt 0:00:11]} d6 {[%emt 0:00:05]} 3. d4 {[%emt 0:00:15]} cxd4 {[%emt 0:00:05]} 4. Nxd4 {[%emt 0:00:05]} Nf6 {[%emt 0:00:05]} 5. Nc3 {[%emt 0:00:10]} a6 {[%emt 0:00:03]} 6. Bd3 {[%emt 0:00:09]} g6 {[%emt 0:00:45]} 7. f3 {[%emt 0:00:15]} e5 {[%emt 0:00:28]} 8. Nb3 {[%emt 0:03:16]} Be6 {[%emt 0:00:49]} 9. Be3 {[%emt 0:03:52]} Nbd7 {[%emt 0:02:25]} 10. a4 {[%emt 0:05:43]} h5 {[%emt 0:06:01]} 11. O-O {[%emt 0:04:51]} Bh6 {[%emt 0:10:00]} 12. Bxh6 {[%emt 0:07:52]} Rxh6 {[%emt 0:01:55]} 13. Qd2 {[%emt 0:12:03]} Rh8 {[%emt 0:00:54]} 14. a5 {[%emt 0:01:44]} Qc7 {[%emt 0:17:10]} 15. Rfd1 {[%emt 0:06:57]} h4 {[%emt 0:11:00]} 16. Bf1 {[%emt 0:06:38]} Ke7 {[%emt 0:00:34]} 17. Qf2 {[%emt 0:03:35]} g5 {[%emt 0:05:23]} 18. h3 {[%emt 0:07:00]} Rad8 {[%emt 0:09:32]} 19. Rd2 {[%emt 0:08:22]} Nc5 {[%emt 0:00:53]} 20. Nxc5 {[%emt 0:02:34]} Qxc5 {[%emt 0:00:10]} 21. Qxc5 {[%emt 0:08:24]} dxc5 {[%emt 0:00:05]} 22. Rxd8 {[%emt 0:00:06]} Rxd8 {[%emt 0:00:05]} 23. Na4 {[%emt 0:00:06]} Rc8 {[%emt 0:12:59]} 24. b3 {[%emt 0:03:37]} Rc6 {[%emt 0:02:35]} 25. Rd1 {[%emt 0:03:38]} Ne8 {[%emt 0:04:01]} 26. Kf2 {[%emt 0:02:23]} Nd6 {[%emt 0:00:16]} 27. Nb6 {[%emt 0:02:10]} Nc8 {[%emt 0:02:52]} 28. Na4 {[%emt 0:01:24]} Rc7 {[%emt 0:05:36]} 29. Be2 {[%emt 0:03:13]} f6 {[%emt 0:01:48]} 30. Rd2 {[%emt 0:02:14]} Rc6 {[%emt 0:01:12]} 31. Rd1 {[%emt 0:00:14]} Bf7 {[%emt 0:02:05]} 32. Ke1 {[%emt 0:01:05]} Be6 {[%emt 0:01:18]} 33. Kf2 {[%emt 0:00:08]} Na7 {[%emt 0:00:54]} 34. Nb6 {[%emt 0:01:11]} Rd6 {[%emt 0:00:13]} 35. Rxd6 {[%emt 0:01:09]} Kxd6 {[%emt 0:00:02]} 36. Bc4 {[%emt 0:00:35]} Nc8 {[%emt 0:02:18]} 37. Nxc8+ {[%emt 0:00:37]} Bxc8 {[%emt 0:00:05]} 38. Bd3 {[%emt 0:00:40]} Be6 {[%emt 0:00:35]} 39. c4 {[%emt 0:00:29]} Kc6 {[%emt 0:00:36]} 40. Ke3 {[%emt 0:00:00]} b6 {[%emt 0:00:00]} 41. axb6 {[%emt 0:00:52]} Kxb6 {[%emt 0:00:18]} 42. Kd2 {[%emt 0:00:05]} a5 {[%emt 0:01:21]} 43. Kc3 {[%emt 0:03:33]} Bf7 {[%emt 0:00:50]} 44. Be2 {[%emt 0:02:40]} Bg6 {[%emt 0:00:31]} 45. Bd3 {[%emt 0:00:07]} Be8 {[%emt 0:00:05]} 46. Bc2 {[%emt 0:00:30]} Bd7 {[%emt 0:00:08]} 47. Bb1 {[%emt 0:01:39]} Kc7 {[%emt 0:00:18]} 48. Bc2 {[%emt 0:00:33]} Kd6 {[%emt 0:00:28]} 49. Kd2 {[%emt 0:02:55]} a4 {[%emt 0:00:44]} 50. bxa4 {[%emt 0:01:35]} Kc7 {[%emt 0:00:07]} 51. Kc3 {[%emt 0:00:23]} Kb6 {[%emt 0:00:03]} 52. Kb3 {[%emt 0:00:15]} Ka5 {[%emt 0:00:04]} 53. Ka3 {[%emt 0:00:01]} Bc8 {[%emt 0:01:15]} 54. Bb1 {[%emt 0:00:40]} Bb7 {[%emt 0:00:15]} 55. Bc2 {[%emt 0:00:57]} Bc6 {[%emt 0:01:32]} 56. Bd1 {[%emt 0:00:25]} Be8 {[%emt 0:00:10]} 57. Bb3 {[%emt 0:00:28]} Bf7 {[%emt 0:00:12]} 58. Ba2 {[%emt 0:00:10]} Be6 {[%emt 0:00:09]} 59. Kb3 {[%emt 0:06:44]} f5 {[%emt 0:06:12]} 60. Bb1 {[%emt 0:01:29]} f4 {[%emt 0:00:40]} 61. Bd3 {[%emt 0:00:59]} Bd7 {[%emt 0:00:48]} 62. Ka3 {[%emt 0:00:42]} Bxa4 {[%emt 0:00:07]} 63. Be2 {[%emt 0:00:04]} Be8 {[%emt 0:01:45]} 64. Bd3 {[%emt 0:00:32]} Bc6 {[%emt 0:01:13]} 65. Bc2 {[%emt 0:00:18]} Bd7 {[%emt 0:00:42]} 66. Bd1 {[%emt 0:00:24]} Bc8 {[%emt 0:00:42]} 67. Be2 {[%emt 0:00:17]} Be6 {[%emt 0:00:07]} 68. Bd3 {[%emt 0:00:27]} Bd7 {[%emt 0:00:05]} 69. Bf1 {[%emt 0:00:42]} Kb6 {[%emt 0:00:23]} 70. Be2 {[%emt 0:02:01]} Kc7 {[%emt 0:00:41]} 71. Bd1 {[%emt 0:01:24]} Kd6 {[%emt 0:00:12]} 72. Kb3 {[%emt 0:00:11]} Kc6 {[%emt 0:02:49]} 73. Ka3 {[%emt 0:00:20]} Kc7 {[%emt 0:00:06]} 74. Kb3 {[%emt 0:00:14]} Kb6 {[%emt 0:00:05]} 75. Kb2 {[%emt 0:03:37]} Ka5 {[%emt 0:01:30]} 76. Kc3 {[%emt 0:00:07]} Bc6 {[%emt 0:00:25]} 77. Bc2 {[%emt 0:00:47]} Be8 {[%emt 0:00:16]} 78. Bb3 {[%emt 0:02:40]} Ba4 {[%emt 0:00:36]} 79. Ba2 {[%emt 0:00:01]} Bd7 {[%emt 0:00:07]} 80. Bb1 {[%emt 0:01:55]} g4 {[%emt 0:03:39]} 81. hxg4 {[%emt 0:01:07]} Bxg4 {[%emt 0:00:05]} 82. Bd3 {[%emt 0:00:20]} h3 {[%emt 0:03:31]} 83. gxh3 {[%emt 0:00:02]} Bxf3 {[%emt 0:00:13]} 84. h4 {[%emt 0:02:05]} Kb6 {[%emt 0:03:12]} 85. Kd2 {[%emt 0:01:20]} Kc7 {[%emt 0:00:07]} 86. Ke1 {[%emt 0:00:36]} Kd6 {[%emt 0:00:06]} 87. Kf2 {[%emt 0:00:05]} Bd1 {[%emt 0:00:19]} 88. Bf1 {[%emt 0:01:35]} Ke7 {[%emt 0:01:21]} 89. Bh3 {[%emt 0:00:24]} Bb3 {[%emt 0:00:35]} 90. Bf1 {[%emt 0:00:03]} Bc2 {[%emt 0:00:40]} 91. Kf3 {[%emt 0:00:20]} Bd1+ {[%emt 0:00:07]} 92. Kf2 {[%emt 0:00:02]} Kf6 {[%emt 0:00:10]} 93. Bh3 {[%emt 0:00:30]} Bc2 {[%emt 0:00:34]} 94. Kf3 {[%emt 0:00:24]} Bd3 {[%emt 0:00:09]} 95. Bf5 {[%emt 0:00:41]} Bxc4 {[%emt 0:00:07]} 96. Bg4 {[%emt 0:01:52]} Be6 {[%emt 0:00:43]} 97. Bh5 {[%emt 0:00:07]} Bc4 {[%emt 0:04:16]} 98. Kf2 {[%emt 0:01:09]} Kg7 {[%emt 0:01:03]} 99. Bf3 {[%emt 0:01:34]} Kh6 {[%emt 0:00:10]} 100. Ke1 {[%emt 0:00:14]} Bf7 {[%emt 0:00:10]} 101. Kd2 {[%emt 0:00:05]} Bh5 {[%emt 0:00:07]} 102. Bg2 {[%emt 0:00:02]} Bg4 {[%emt 0:00:27]} 103. Kc3 {[%emt 0:00:27]} Be2 {[%emt 0:00:37]} 104. Kd2 {[%emt 0:00:04]} f3 {[%emt 0:00:22]} 105. Bh1 {[%emt 0:00:25]} Kh5 {[%emt 0:01:24]} 106. Ke3 {[%emt 0:00:05]} Kxh4 {[%emt 0:00:16]} 107. Bxf3 {[%emt 0:00:08]} Bxf3 {[%emt 0:00:13]} 108. Kxf3 {[%emt 0:00:02]} Kh3 {[%emt 0:00:18]} 109. Ke3 {[%emt 0:00:03]} Kg3 {[%emt 0:00:14]} 110. Kd3 {[%emt 0:00:03]} Kf3 {[%emt 0:00:07]} 111. Kc4 {[%emt 0:00:03]} Kxe4 {[%emt 0:00:05]} 112. Kxc5 {[%emt 0:00:02]} Kd3 {[%emt 0:00:08]} 0-1

[Event "Budapest Chess Festival 2024"]
[Site "Budapest"]
[Date "2024.05.24"]
[Round "2.16"]
[White "Visakh N R"]
[Black "Palczert, Matyas"]
[Result "1-0"]
[ECO "D31"]
[WhiteElo "2511"]
[BlackElo "2332"]
[Annotator "TA"]
[PlyCount "145"]
[EventDate "2024.05.20"]
[EventType "swiss"]
[EventCountry "HUN"]
[SourceTitle "playchess.com"]
[Source "ChessBase"]
[SourceQuality "1"]
[TimeControl "40/5400+30:1800+30"]

{[%evp 59,145,74,74,41,42,30,29,40,40,42,43,0,0,0,0,0,81,93,77,64,58,49,234,220,236,231,308,310,298,257,255,259,419,306,260,308,272,313,304,309,326,289,331,318,324,310,310,310,406,406,405,406,439,432,1059,906,981,992,1673,1135,1933,1784,2258,2258,2258,1842,1227,0,1432,569,5700,4622,29970,29971,29972,29974,29975,29974,29978,29975,29976,29975,29981,29982,29982,29983,29983,29984]} 1. d4 {[%emt 0:00:40]} d5 {[%emt 0:00:39]} 2. c4 {[%emt 0:00:31]} e6 {[%emt 0:00:14]} 3. Nc3 {[%emt 0:01:44]} h6 {[%emt 0:00:22]} 4. cxd5 {[%emt 0:00:30]} exd5 {[%emt 0:00:10]} 5. Bf4 {[%emt 0:00:22]} Nf6 {[%emt 0:01:20]} 6. e3 {[%emt 0:00:36]} Bd6 {[%emt 0:02:11]} 7. Bxd6 {[%emt 0:00:08]} Qxd6 {[%emt 0:00:13]} 8. Bd3 {[%emt 0:00:08]} O-O {[%emt 0:01:26]} 9. Nge2 {[%emt 0:00:27]} c6 {[%emt 0:02:37]} 10. Qd2 {[%emt 0:01:10]} Re8 {[%emt 0:00:45]} 11. O-O {[%emt 0:09:19]} Qe7 {[%emt 0:03:55]} 12. Rae1 {[%emt 0:03:53]} Nbd7 {[%emt 0:04:28]} 13. Ng3 {[%emt 0:03:59]} Nb6 {[%emt 0:05:41]} 14. f3 {[%emt 0:06:23]} Be6 {[%emt 0:06:09]} 15. Nce2 {[%emt 0:11:26]} c5 {[%emt 0:08:48]} 16. dxc5 {[%emt 0:03:05]} Nc4 {[%emt 0:02:56]} 17. Qc1 {[%emt 0:07:02]} Qxc5 {[%emt 0:01:20]} 18. Nd4 {[%emt 0:00:14]} Rac8 {[%emt 0:04:49]} 19. b3 {[%emt 0:01:43]} Ne5 {[%emt 0:01:05]} 20. Qxc5 {[%emt 0:02:20]} Rxc5 {[%emt 0:00:09]} 21. Bb1 {[%emt 0:00:03]} Nc6 {[%emt 0:10:35]} 22. Nge2 {[%emt 0:01:28]} Nxd4 {[%emt 0:03:09]} 23. Nxd4 {[%emt 0:00:06]} Rec8 {[%emt 0:00:42]} 24. g4 {[%emt 0:03:04]} a6 {[%emt 0:06:29]} 25. Kf2 {[%emt 0:01:07]} Nd7 {[%emt 0:02:16]} 26. Rg1 {[%emt 0:12:00]} Nb8 {[%emt 0:03:15]} 27. e4 {[%emt 0:09:24]} Nc6 {[%emt 0:02:12]} 28. Nxe6 {[%emt 0:02:24]} fxe6 {[%emt 0:00:07]} 29. exd5 {[%emt 0:00:57]} exd5 {[%emt 0:00:17]} 30. g5 {[%emt 0:00:06]} h5 {[%emt 0:07:31]} 31. Bg6 {[%emt 0:02:48]} Nd4 {[%emt 0:01:46]} 32. Kg3 {[%emt 0:05:35]} (32. Bxh5 Rc2+ 33. Kg3 (33. Ke3 $2 Ne6 $19) 33... Ne2+ (33... Rxa2 34. Bg4 $11) 34. Rxe2 Rxe2 $17) 32... Rf8 {[%emt 0:03:12]} 33. Bxh5 {[%emt 0:01:44]} Rc3 {[%emt 0:02:32]} 34. Rgf1 {[%emt 0:00:30]} Nf5+ {[%emt 0:01:21]} 35. Kh3 {[%emt 0:00:08]} Ne3 {[%emt 0:02:10]} 36. Rf2 {[%emt 0:01:15]} Rf5 {[%emt 0:02:36]} 37. Rg1 {[%emt 0:00:03]} Kf8 {[%emt 0:01:46]} (37... Kh7 $11 {keeps the balance.}) 38. Bg6 $16 {[%emt 0:02:24]} Re5 {[%emt 0:00:20]} 39. Rd2 {[%emt 0:02:40]} Ke7 {[%emt 0:04:46]} 40. Rd3 {[%emt 0:00:00]} Rc8 $2 {[%emt 0:00:00]} ({Black should play} 40... Rxd3 $1 $14 41. Bxd3 d4) 41. f4 $18 {[%emt 0:09:16]} Re6 {[%emt 0:02:55] [#]} 42. Kg3 $1 {[%emt 0:01:50]} Rc5 {[%emt 0:08:49]} 43. h4 {[%emt 0:02:34]} Nc2 {[%emt 0:03:14]} 44. Bf5 {[%emt 0:03:58]} Re3+ {[%emt 0:01:28]} 45. Kg4 {[%emt 0:01:05]} d4 $2 {[%emt 0:01:03]} (45... Re2 {was necessary.} 46. h5 (46. Rgg3 d4 $18) 46... d4) 46. Rdd1 {[%emt 0:04:56]} ({Don't go for} 46. h5 $2 Rxf5 47. Rd2 Rc5 $19) 46... Rxf5 {[%emt 0:02:07]} 47. Kxf5 {[%emt 0:00:03]} Re6 {[%emt 0:00:53]} 48. Kg4 {[%emt 0:07:16]} Ne3+ {[%emt 0:01:10]} 49. Kf3 {[%emt 0:00:02]} Nxd1 {[%emt 0:00:08]} 50. Rxd1 {[%emt 0:00:05]} Re3+ {[%emt 0:00:29]} 51. Kg4 {[%emt 0:00:02]} d3 {[%emt 0:00:13]} 52. Kf5 {[%emt 0:00:06]} Kf7 {[%emt 0:01:06]} 53. h5 {[%emt 0:00:02]} Rh3 {[%emt 0:01:21]} 54. Ke4 {[%emt 0:03:20]} Rxh5 {[%emt 0:00:23]} 55. Rxd3 {[%emt 0:00:01]} (55. Kxd3 Rh2 56. Rd2 Rh1 $11) 55... Ke6 {[%emt 0:02:04]} 56. Rc3 {[%emt 0:00:30]} Kd6 {[%emt 0:01:53]} (56... Rh1 $142 57. Rc7 (57. f5+ Kd6 $18) 57... Re1+ 58. Kf3 Rf1+ 59. Ke3 Re1+ 60. Kf2 Ra1 61. Rxg7 (61. Rxb7 Kf5 $18) 61... Rxa2+ 62. Kf3 b5 63. Rg6+ Kd7) 57. Kf5 $18 {[%emt 0:01:19]} Rh4 {[%emt 0:00:05]} 58. Rf3 {[%emt 0:00:41]} Ke7 {[%emt 0:00:16]} 59. Kg6 {[%emt 0:00:07]} Kf8 {[%emt 0:00:07]} 60. Rc3 {[%emt 0:00:18]} Rxf4 {[%emt 0:00:22]} 61. Rc8+ {[%emt 0:00:10]} Ke7 {[%emt 0:00:06]} 62. Rc7+ {[%emt 0:00:05]} Kf8 {[%emt 0:00:25]} 63. Rc8+ {[%emt 0:00:06]} Ke7 {[%emt 0:00:04]} 64. Kxg7 {[%emt 0:02:47]} Rf2 {[%emt 0:00:36]} 65. Rc7+ {[%emt 0:00:38]} Ke8 {[%emt 0:01:57]} 66. Rxb7 {[%emt 0:00:08]} Rxa2 {[%emt 0:00:05]} 67. g6 {[%emt 0:00:02]} Rh2 {[%emt 0:00:22]} 68. Kg8 {[%emt 0:00:19]} a5 {[%emt 0:00:03]} 69. Rb5 {[%emt 0:00:20]} Rh3 {[%emt 0:00:51]} 70. Rxa5 {[%emt 0:00:34]} Rxb3 {[%emt 0:00:05]} 71. Re5+ {[%emt 0:00:03]} Kd7 {[%emt 0:00:05]} 72. g7 {[%emt 0:00:04]} Kd6 {[%emt 0:00:42]} 73. Rh5 {[%emt 0:00:12]} 1-0

[Event "Budapest Chess Festival 2024"]
[Site "Budapest"]
[Date "2024.05.24"]
[Round "2.17"]
[White "Jeet, Jain"]
[Black "Vetoshko, Volodymyr"]
[Result "0-1"]
[ECO "C54"]
[WhiteElo "2332"]
[BlackElo "2505"]
[Annotator "TA"]
[PlyCount "76"]
[EventDate "2024.05.20"]
[EventType "swiss"]
[EventCountry "HUN"]
[SourceTitle "playchess.com"]
[Source "ChessBase"]
[SourceQuality "1"]
[TimeControl "40/5400+30:1800+30"]

{[%evp 14,76,29,12,10,10,10,13,14,10,14,0,0,0,0,-47,-35,-130,-140,-133,-147,-183,-162,-211,-197,-215,-200,-232,-250,-259,-283,-274,-232,-235,-229,-227,-219,-281,-269,-252,-243,-488,-488,-475,-466,-466,-451,-465,-453,-473,-432,-505,-504,-498,-491,-522,-508,-772,-772,-769,-767,-723,-661,-700,-652]} 1. e4 {[%emt 0:01:05]} e5 {[%emt 0:00:58]} 2. Nf3 {[%emt 0:00:50]} Nc6 {[%emt 0:00:04]} 3. Bc4 {[%emt 0:02:08]} Bc5 {[%emt 0:00:49]} 4. c3 {[%emt 0:00:20]} Nf6 {[%emt 0:00:16]} 5. d3 {[%emt 0:00:41]} d6 {[%emt 0:00:32]} 6. O-O {[%emt 0:00:30]} h6 {[%emt 0:01:19]} 7. b4 {[%emt 0:06:27]} Bb6 {[%emt 0:00:18]} 8. a4 {[%emt 0:00:01] Threatens to win with a5.} a5 {[%emt 0:02:15]} 9. b5 {[%emt 0:00:13]} Ne7 {[%emt 0:00:10]} 10. Be3 {[%emt 0:07:22]} Bxe3 {[%emt 0:04:29] The position is equal.} 11. fxe3 {[%emt 0:00:03]} O-O {[%emt 0:01:29]} 12. Qe1 {[%emt 0:14:46]} c6 {[%emt 0:02:25]} 13. Qg3 {[%emt 0:02:21][%cal Of3e5]} Ng4 {[%emt 0:24:47]} 14. Ne1 {[%emt 0:07:49]} (14. Re1 $11) 14... d5 $15 {[%emt 0:05:13]} 15. Bb3 {[%emt 0:02:47] [#] White is on the road to losing.} (15. Ba2 $15 Qb6 16. Nc2) 15... Qb6 $1 $17 {[%emt 0:04:48][%csl LRb5,LRe3]} 16. Nc2 {[%emt 0:18:59]} dxe4 {[%emt 0:07:21]} (16... cxb5 17. h3 Nf6 (17... bxa4 18. Bxd5 Nxd5 19. exd5 $15) 18. Qxe5 bxa4 19. Bxd5 Nexd5 20. exd5 $15) 17. dxe4 {[%emt 0:07:33]} cxb5 {[%emt 0:00:28]} 18. h3 {[%emt 0:05:45]} (18. Nba3 {might work better.}) 18... Nf6 {[%emt 0:06:56]} 19. axb5 {[%emt 0:02:25]} Qxb5 {[%emt 0:02:39]} ({Less strong is} 19... Nxe4 20. Qxe5 Nc5 21. Nd2 Nxb3 22. Nxb3 $17) 20. Nd2 {[%emt 0:03:53] [#]} Nxe4 {[%emt 0:03:06][%mdl 512]} 21. Nxe4 {[%emt 0:10:05][%cal Ob3f7] Hoping for Bxf7+!} Qxb3 {[%emt 0:00:34]} 22. Qxe5 {[%emt 0:00:26] Nd4 would now be deadly.} (22. Nf6+ Kh8 23. Nh5 Ng6 $19 (23... Qxc2 24. Qxg7#)) 22... Ng6 {[%emt 0:10:06]} 23. Nd4 {[%emt 0:00:14]} Nxe5 {[%emt 0:00:34]} 24. Nxb3 {[%emt 0:00:02] Excellent horsemanship.} b6 {[%emt 0:00:33]} 25. Rfb1 {[%emt 0:01:04]} Bf5 {[%emt 0:05:48]} 26. Nbd2 {[%emt 0:00:17]} Rfe8 {[%emt 0:03:53]} 27. Rxb6 $2 {[%emt 0:00:54] [#]} (27. Ra4) 27... Bxe4 $1 $19 {[%emt 0:00:19] Black is clearly winning.} 28. Rb5 {[%emt 0:02:38]} Bd3 {[%emt 0:02:25]} 29. Rbxa5 {[%emt 0:00:04]} Rxa5 {[%emt 0:00:07]} 30. Rxa5 {[%emt 0:00:02]} Nc4 {[%emt 0:00:42]} 31. Nxc4 {[%emt 0:00:26]} Bxc4 {[%emt 0:00:04][%mdl 4096] Endgame. KRB-KR} 32. Kf2 {[%emt 0:00:15]} Rc8 {[%emt 0:01:00]} 33. Ra1 {[%emt 0:00:09]} Bd5 {[%emt 0:01:22]} 34. Rc1 {[%emt 0:00:22]} Ra8 {[%emt 0:00:32]} 35. g4 {[%emt 0:00:38]} (35. Rc2 $142) 35... Ra2+ {[%emt 0:00:14]} 36. Kg3 {[%emt 0:00:03]} g5 {[%emt 0:00:14][%csl Gd5][%cal Ra2g2]} 37. h4 {[%emt 0:00:06]} Rg2+ {[%emt 0:00:38]} 38. Kh3 {[%emt 0:00:03]} Re2 {[%emt 0:00:18] Weighted Error Value: White=0.37/Black=0.05 (flawless) .  Mistake:       	White=5     	---        OK:         	White=7     	Black=14     Best:        	White=1     	Black=2      Strong:       	---       	Black=2} 0-1

[Event "Budapest Chess Festival 2024"]
[Site "Budapest"]
[Date "2024.05.24"]
[Round "2.18"]
[White "Popovic, Dusan"]
[Black "Citak, Selim"]
[Result "1/2-1/2"]
[ECO "A06"]
[WhiteElo "2486"]
[BlackElo "2327"]
[Annotator "TA"]
[PlyCount "119"]
[EventDate "2024.05.20"]
[EventType "swiss"]
[EventCountry "HUN"]
[SourceTitle "playchess.com"]
[Source "ChessBase"]
[SourceQuality "1"]
[TimeControl "40/5400+30:1800+30"]

{[%evp 9,119,0,0,-8,0,0,0,0,-6,0,17,22,24,29,37,33,60,46,72,65,64,69,72,52,40,37,30,41,76,79,68,51,49,75,72,69,77,81,69,81,83,22,81,72,80,81,77,64,51,0,60,0,0,0,6,0,0,0,11,9,17,0,0,0,0,0,0,0,0,0,0,0,3,14,27,0,0,0,0,0,8,8,8,8,8,8,8,8,8,8,8,8,8,0,0,0,0,0,0,0,0,0,0,0,0,0,0,0,0,0,0,0]} 1. Nf3 {[%emt 0:00:34]} d5 {[%emt 0:00:49]} 2. g3 {[%emt 0:00:05]} Nf6 {[%emt 0:00:12]} 3. Bg2 {[%emt 0:00:06]} c5 {[%emt 0:00:49]} 4. O-O {[%emt 0:00:23]} e6 {[%emt 0:00:15]} 5. d3 {[%emt 0:01:14]} Nc6 {[%emt 0:00:10]} 6. a4 {[%emt 0:03:06]} Be7 {[%emt 0:01:34]} 7. Bf4 {[%emt 0:01:23]} O-O {[%emt 0:00:56]} 8. e4 {[%emt 0:00:21]} dxe4 {[%emt 0:05:25]} 9. dxe4 {[%emt 0:00:13]} Qxd1 {[%emt 0:07:47]} 10. Rxd1 {[%emt 0:00:27]} Nxe4 {[%emt 0:00:30][%cal Bf6e4,Be4d6,Bd6f7][%mdl 32]} 11. Ne5 {[%emt 0:01:05]} Nxe5 {[%emt 0:00:49]} 12. Bxe5 {[%emt 0:00:05]} f5 {[%emt 0:08:26]} 13. Nd2 {[%emt 0:54:34]} Nd6 {[%emt 0:06:45]} 14. a5 {[%emt 0:10:23]} Nf7 {[%emt 0:03:10]} 15. Bc7 {[%emt 0:07:59] [#] aiming for a6.} Bd8 $1 {[%emt 0:22:45]} 16. Bxd8 {[%emt 0:00:12]} Rxd8 {[%emt 0:00:45]} 17. Nb3 {[%emt 0:00:52]} Rxd1+ {[%emt 0:01:36]} 18. Rxd1 {[%emt 0:00:04]} c4 {[%emt 0:00:40]} 19. Nc5 {[%emt 0:01:02]} Rb8 {[%emt 0:04:09]} 20. Nd7 $1 {[%emt 0:03:26] White has more active pieces.} Bxd7 {[%emt 0:00:41]} 21. Rxd7 $14 {[%emt 0:00:01][%mdl 4096] Endgame. KRB-KRN} Ne5 {[%emt 0:04:00]} 22. Re7 {[%emt 0:09:22]} (22. Rxb7 Rxb7 23. Bxb7 Kf8 $11) 22... Nc6 {[%emt 0:03:35]} 23. Rxe6 {[%emt 0:00:04]} Nxa5 {[%emt 0:01:45]} 24. Re5 {[%emt 0:02:37][%csl LRa5,LRf5]} Nc6 {[%emt 0:02:00]} 25. Rc5 {[%emt 0:00:46]} (25. Rxf5 $16 {White wants to play Rc5.} Nd4 26. Bd5+ Kh8 27. Rf7) 25... Rd8 {[%emt 0:03:52]} (25... g6 $11 {remains equal.}) 26. Bd5+ {[%emt 0:01:11]} ({But not} 26. Rxf5 Rd1+ 27. Bf1 Nd4 $11) 26... Kf8 {[%emt 0:00:28][%cal Oc4c3]} 27. Bxc6 {[%emt 0:01:26]} ({Much weaker is} 27. Bxc4 g6 $14) 27... bxc6 {[%emt 0:01:11]} 28. Rxf5+ $16 {[%emt 0:00:45] KR-KR} ({Much less strong is} 28. Rxc6 Rb8 $16) 28... Ke7 {[%emt 0:00:47]} 29. Ra5 {[%emt 0:00:29]} (29. Rc5 $14) 29... Rd7 {[%emt 0:05:30]} (29... Rd2 $11) 30. c3 {[%emt 0:00:21]} (30. Rc5 $14) 30... Rb7 $11 {[%emt 0:01:54]} 31. Ra2 {[%emt 0:00:44]} g5 {[%emt 0:01:11]} 32. f3 {[%emt 0:00:15]} Kd6 {[%emt 0:00:52]} 33. Kf2 {[%emt 0:00:04]} h6 {[%emt 0:01:46]} 34. Ke3 {[%emt 0:01:17]} Kd5 {[%emt 0:01:26]} 35. g4 {[%emt 0:00:32]} Re7+ {[%emt 0:02:19]} 36. Kf2 {[%emt 0:00:01]} Rb7 {[%emt 0:01:22]} 37. Ke3 {[%emt 0:00:02]} Re7+ {[%emt 0:00:07]} 38. Kf2 {[%emt 0:00:04]} Rb7 {[%emt 0:00:02]} 39. h3 {[%emt 0:00:05]} Rb5 {[%emt 0:02:35]} 40. Kg3 {[%emt 0:00:00]} a5 {[%emt 0:00:00]} 41. h4 {[%emt 0:10:39]} Ke5 {[%emt 0:06:04] [#] And now ...gxh4+ would win.} 42. hxg5 {[%emt 0:01:35]} hxg5 {[%emt 0:00:06] The position is equal.} 43. Ra1 {[%emt 0:01:38]} Kf6 {[%emt 0:01:57]} 44. Rb1 {[%emt 0:14:30]} Rb3 {[%emt 0:04:09]} 45. f4 {[%emt 0:00:55]} gxf4+ {[%emt 0:03:45]} 46. Kxf4 {[%emt 0:00:04]} Rb5 {[%emt 0:00:09]} 47. Rd1 {[%emt 0:05:11]} Rxb2 {[%emt 0:01:13]} 48. Rd6+ {[%emt 0:00:06]} Ke7 {[%emt 0:05:58]} 49. Rxc6 {[%emt 0:00:06]} Rc2 {[%emt 0:01:01]} 50. Rxc4 {[%emt 0:00:18]} a4 {[%emt 0:00:12]} 51. Kg5 {[%emt 0:00:46]} a3 {[%emt 0:03:19]} 52. Kg6 {[%emt 0:00:14]} Rc1 {[%emt 0:00:52] ( -> ...a2)} 53. Ra4 {[%emt 0:01:50]} Rxc3 {[%emt 0:00:07]} 54. g5 {[%emt 0:00:13]} Kd6 {[%emt 0:01:23]} 55. Kh5 {[%emt 0:01:21]} Kc5 {[%emt 0:02:19]} 56. g6 {[%emt 0:00:21]} Rg3 {[%emt 0:01:16]} 57. Kh6 {[%emt 0:00:53]} Kb5 {[%emt 0:00:22]} 58. Ra8 {[%emt 0:00:26]} Kb4 {[%emt 0:00:32]} 59. g7 {[%emt 0:00:16]} Kb3 {[%emt 0:01:11]} 60. g8=Q+ {Weighted Error Value: White=0.07 (flawless) /Black=0.08 (flawless) .  Mistake:       	White=3     	Black=2      Inaccurate:     	White=1     	Black=3      OK:         	White=24    	Black=25     Best:        	White=2     	Black=1      Strong:       	White=1     	Black=1} 1/2-1/2